bitfinex-derivatives/quotes_ETHF0:USTF0_20250316
["timestamp","ask_amount","ask_price","bid_price","bid_amount"]
[1742147657912,2.122,1909.8,1909.4,4.9685]
[1742147658219,0.83794,1909.4,1909.3,7.59777]
[1742147658418,0.83793,1909.5,1909.3,7.59777]
[1742147658615,0.83794,1909.4,1909.3,7.59777]
[1742147658925,1.56933,1909.5,1909.3,7.59777]
[1742147659219,0.83794,1909.4,1909.3,7.59777]
[1742147659615,2.21384,1909.4,1909.3,8.1225]
[1742147662015,1.3759,1909.4,1909.3,8.96048]
[1742147663623,2.21384,1909.4,1909.3,8.96048]
[1742147664126,2.21384,1909.4,1909.3,8.1225]
[1742147665527,2.21384,1909.4,1909.3,8.96048]
[1742147665732,2.21384,1909.4,1909.3,8.1225]
[1742147666720,2.21384,1909.4,1909.3,8.96048]
[1742147667427,2.21384,1909.4,1909.3,8.1225]
[1742147668622,2.21384,1909.4,1909.3,8.96048]
[1742147668823,1.3759,1909.4,1909.3,8.96048]
[1742147669024,2.21384,1909.4,1909.3,8.96048]
[1742147669424,1.3759,1909.4,1909.3,8.96048]
[1742147669624,2.21384,1909.4,1909.3,8.96048]
[1742147670024,0.83794,1909.4,1909.3,8.96048]
[1742147670626,2.23824,1909.4,1909.3,8.96048]
[1742147672431,2.23824,1909.4,1909.3,8.1225]
[1742147673425,2.23824,1909.4,1909.3,8.96048]
[1742147675433,0.83798,1909.3,1909.2,0.00785752]
[1742147675637,2.97668,1909.3,1909.2,0.00785752]
[1742147675830,2.97668,1909.3,1909.2,1.42035752]
[1742147677252,2.1387,1909.3,1909.2,2.25838752]
[1742147677452,5.87,1909.4,1909.3,0.83798]
[1742147677653,5.87,1909.4,1909.3,9.00928]
[1742147679655,0.83779,1909.8,1909.7,0.83781]
[1742147680154,0.83781,1909.7,1909.6,4.04562]
[1742147680350,0.83781,1909.7,1909.6,3.2078]
[1742147680550,0.83786,1909.6,1909.4,1.3892]
[1742147680751,2.27596,1909.6,1909.4,1.3892]
[1742147681049,2.94736,1909.6,1909.4,1.3892]
[1742147681250,1.3714,1909.5,1909.4,2.22714]
[1742147691058,0.6858,1909.7,1909.6,0.83785]
[1742147692661,2.0071,1909.7,1909.6,0.83785]
[1742147693249,2.0071,1909.7,1909.6,2.17925]
[1742147693759,2.0071,1909.7,1909.6,5.72925]
[1742147696962,0.7044,1909.8,1909.7,0.83781]
[1742147697261,2.0872,1909.8,1909.7,5.46751]
[1742147700363,2.92496,1909.8,1909.7,5.46751]
[1742147700558,2.92496,1909.8,1909.7,3.2078]
[1742147701360,0.83783,1909.7,1909.5,5.40917]
[1742147701660,2.1071,1909.7,1909.6,2.20135]
[1742147702364,2.94491,1909.7,1909.6,2.20135]
[1742147702659,2.1071,1909.7,1909.6,2.20135]
[1742147703256,2.1071,1909.7,1909.6,2.93045]
[1742147703453,1.3914,1909.7,1909.6,2.93045]
[1742147703661,1.3914,1909.7,1909.6,3.59175]
[1742147705056,0.7044,1909.8,1909.7,0.83781]
[1742147705256,5.87,1909.9,1909.8,0.83776]
[1742147705453,6.5351,1909.9,1909.8,0.83776]
[1742147706161,0.6651,1909.9,1909.8,0.83776]
[1742147706564,1.9899,1909.9,1909.8,2.26846]
[1742147711565,1.9899,1909.9,1909.7,3.2078]
[1742147711758,2.25859,1909.8,1909.7,0.83781]
[1742147712264,1.4208,1909.8,1909.7,0.83781]
[1742147712667,2.25856,1909.8,1909.7,0.83781]
[1742147712963,1.4208,1909.8,1909.7,2.19331]
[1742147713758,1.4208,1909.8,1909.7,5.40111]
[1742147715669,6.5351,1909.9,1909.8,0.83776]
[1742147715865,7.9707,1909.9,1909.8,2.28586]
[1742147716367,2.1007,1909.9,1909.8,5.83286]
[1742147721067,2.1007,1909.9,1909.8,5.83186]
[1742147722672,0.83766,1910.1,1909.9,0.8377]
[1742147723358,0.83761,1910.2,1909.8,3.546]
[1742147723572,9.91538,1910.3,1910.1,0.83762]
[1742147723975,0.83759,1910.2,1910.1,0.83762]
[1742147724876,0.83759,1910.2,1910.0,0.83764]
[1742147725675,0.83759,1910.2,1910.1,0.83763]
[1742147725879,9.91537,1910.3,1910.1,0.83763]
[1742147726075,5.87,1910.3,1909.9,3.2078]
[1742147726577,6.70753,1910.4,1910.1,0.8376]
[1742147726776,6.70753,1910.4,1910.2,0.83758]
[1742147727775,5.87,1910.4,1909.9,3.2078]
[1742147728169,6.70752,1910.4,1910.2,0.83757]
[1742147729976,6.70752,1910.4,1910.3,0.83754]
[1742147730173,5.87,1910.4,1910.3,0.83754]
[1742147734482,6.7075,1910.4,1910.3,0.83754]
[1742147734683,5.87,1910.4,1910.3,0.83754]
[1742147735178,6.7075,1910.4,1910.3,0.83754]
[1742147735370,5.87,1910.4,1910.3,0.83754]
[1742147739086,6.70751,1910.4,1910.2,0.84541752]
[1742147739280,5.87,1910.4,1910.2,0.00785752]
[1742147739582,6.70752,1910.4,1910.2,0.84542752]
[1742147739885,5.87,1910.4,1910.3,0.83754]
[1742147741176,6.70749,1910.5,1910.3,0.83754]
[1742147745086,5.87,1910.5,1910.3,0.83754]
[1742147745381,6.70749,1910.5,1910.3,0.83754]
[1742147746293,6.70749,1910.5,1910.2,0.00785752]
[1742147746494,6.70749,1910.5,1910.3,0.83751]
[1742147747693,6.70749,1910.5,1910.4,0.8375]
[1742147747694,5.87,1910.5,1910.4,0.8375]
[1742147752898,0.83741,1910.6,1910.4,0.8375]
[1742147753893,0.8374,1910.7,1910.5,0.83744]
[1742147754596,0.83736,1910.8,1910.6,0.83741]
[1742147754792,0.83737,1910.7,1910.5,4.04524]
[1742147755801,0.83741,1910.6,1910.5,4.04524]
[1742147756103,5.87,1910.9,1910.5,4.04524]
[1742147756492,0.83741,1910.6,1910.5,4.04524]
[1742147756700,0.8374,1910.7,1910.5,4.04524]
[1742147756999,0.8374,1910.7,1910.5,0.83743]
[1742147758105,0.8374,1910.7,1910.6,0.83741]
[1742147758904,7.96323,1910.9,1910.4,4.37947]
[1742147759303,0.83746,1910.5,1910.4,4.37947]
[1742147760000,0.83745,1910.6,1910.4,4.37946]
[1742147760199,0.83746,1910.5,1910.4,4.37946]
[1742147760410,0.83748,1910.5,1910.3,6.7488]
[1742147760709,0.83748,1910.5,1910.4,0.83749]
[1742147760907,0.83748,1910.5,1910.4,0.8375]
[1742147761107,0.83744,1910.6,1910.5,0.83746]
[1742147761305,3.2078,1910.8,1910.5,0.83746]
[1742147761508,0.83741,1910.6,1910.5,0.83746]
[1742147761912,0.83746,1910.5,1910.4,0.83749]
[1742147762411,0.83744,1910.6,1910.4,0.83749]
[1742147763111,0.83744,1910.6,1910.3,6.7488]
[1742147763313,0.83744,1910.6,1910.4,0.83747]
[1742147763912,0.83746,1910.5,1910.4,0.83747]
[1742147764302,0.83744,1910.6,1910.4,0.83747]
[1742147765116,3.2078,1910.8,1910.4,0.83747]
[1742147765415,0.83742,1910.6,1910.5,0.83744]
[1742147765718,0.83741,1910.6,1910.5,0.83744]
[1742147765911,0.8374,1910.7,1910.5,0.83744]
[1742147766213,3.2078,1910.8,1910.3,6.7488]
[1742147766423,4.04514,1910.8,1910.6,0.8374]
[1742147767108,0.83734,1910.8,1910.6,0.8374]
[1742147767307,0.83734,1910.8,1910.5,3.2078]
[1742147767711,0.83734,1910.8,1910.6,0.83739]
[1742147768014,5.87,1910.9,1910.8,0.83732]
[1742147768415,6.70728,1910.9,1910.8,0.83732]
[1742147768715,5.87,1910.9,1910.8,0.83732]
[1742147768912,5.87,1910.9,1910.8,3.57932]
[1742147773414,9.0778,1911.2,1910.8,2.742]
[1742147773620,9.91496,1911.2,1911.0,0.83722]
[1742147773811,9.91496,1911.2,1911.1,1.4546]
[1742147776814,13.67077,1911.2,1910.4,3.2078]
[1742147777117,7.9335,1911.1,1910.5,6.4205]
[1742147777418,7.9335,1911.1,1910.7,0.83733]
[1742147777419,0.8373,1910.9,1910.7,0.83733]
[1742147777621,0.8373,1910.9,1910.8,2.1901]
[1742147778118,0.8373,1910.9,1910.8,1.4609]
[1742147778320,2.09334,1910.8,1910.5,0.6914]
[1742147778618,0.83754,1910.3,1910.2,0.00785752]
[1742147779713,5.87,1910.4,1910.2,0.84544752]
[1742147779916,0.83754,1910.3,1910.2,2.09415752]
[1742147780517,0.83754,1910.3,1910.2,2.93174752]
[1742147780918,0.83754,1910.3,1910.2,2.93172752]
[1742147781920,0.83754,1910.3,1910.2,2.93174752]
[1742147782517,0.83754,1910.3,1910.2,2.09415752]
[1742147782815,0.83754,1910.3,1910.2,2.93174752]
[1742147783221,0.83754,1910.3,1910.2,2.09415752]
[1742147784619,6.70754,1910.3,1910.2,2.09415752]
[1742147784825,12.41534,1910.3,1910.2,2.09415752]
[1742147785125,0.83763,1910.1,1910.0,0.7054]
[1742147786325,4.04543,1910.1,1910.0,0.7054]
[1742147787924,0.83763,1910.1,1910.0,0.7054]
[1742147788113,6.70763,1910.1,1910.0,0.7054]
[1742147790025,5.87,1910.1,1910.0,1.54307]
[1742147790320,6.70763,1910.1,1910.0,1.54307]
[1742147791230,6.70763,1910.1,1910.0,0.7054]
[1742147792525,6.70763,1910.1,1910.0,1.54307]
[1742147792726,5.87,1910.1,1910.0,1.54307]
[1742147793128,6.70763,1910.1,1910.0,0.7054]
[1742147793329,8.13813,1910.1,1910.0,2.1428]
[1742147793525,8.13813,1910.1,1910.0,1.4374]
[1742147793730,0.83767,1910.0,1909.9,0.84555752]
[1742147793930,2.26817,1910.0,1909.9,0.00785752]
[1742147794235,2.26817,1910.0,1909.9,0.84557752]
[1742147794529,8.13817,1910.0,1909.9,7.52e-06]
[1742147794728,0.83798,1909.3,1909.2,3.2078]
[1742147795127,1.4305,1909.4,1909.2,3.2078]
[1742147795329,0.6935,1909.6,1909.3,1.4374]
[1742147795525,0.83789,1909.5,1909.4,4.37591]
[1742147795726,2.124,1909.6,1909.4,4.37591]
[1742147795927,1.4305,1909.5,1909.4,4.37591]
[1742147796128,2.26839,1909.5,1909.4,4.37591]
[1742147796631,1.4305,1909.5,1909.4,4.37591]
[1742147796831,1.4305,1909.5,1909.4,7.58371]
[1742147797031,1.4305,1909.5,1909.4,8.30831]
[1742147798324,5.87,1909.7,1909.6,0.83785]
[1742147798525,1.3982,1909.7,1909.6,0.83785]
[1742147798732,6.5587,1909.9,1909.4,8.163]
[1742147798939,1.3982,1909.7,1909.6,0.83781]
[1742147799936,1.52643,1909.9,1909.7,0.83778]
[1742147800134,2.107,1909.9,1909.8,0.83776]
[1742147800434,2.94472,1909.9,1909.7,4.37577]
[1742147800634,1.4183,1909.8,1909.7,4.37577]
[1742147800831,0.83766,1910.1,1909.7,3.538]
[1742147801038,1.4183,1910.1,1910.0,0.83764]
[1742147801235,0.00785752,1910.2,1910.0,4.37564]
[1742147801442,1.42615752,1910.2,1910.0,7.58344]
[1742147801935,1.42615752,1910.2,1910.1,0.83763]
[1742147802137,0.00785752,1910.2,1910.1,0.83763]
[1742147802334,1.44315752,1910.2,1910.1,0.83763]
[1742147802733,0.00785752,1910.2,1910.1,3.33763]
[1742147802933,5.87,1910.6,1910.4,0.83747]
[1742147803129,1.4353,1910.7,1910.4,3.538]
[1742147803329,1.4353,1910.7,1910.4,6.7458]
[1742147803544,1.4353,1910.7,1910.5,1.52355]
[1742147803729,1.418,1910.9,1910.7,0.83736]
[1742147803935,1.4353,1910.8,1910.7,0.83736]
[1742147804137,1.4353,1910.8,1910.6,0.84523752]
[1742147804432,1.4353,1910.8,1910.6,0.00785752]
[1742147804638,2.27264,1910.8,1910.6,0.00785752]
[1742147804833,0.83737,1910.7,1910.6,0.00785752]
[1742147805031,2.27267,1910.7,1910.6,0.00785752]
[1742147806839,5.48047,1910.7,1910.6,0.00785752]
[1742147808237,0.8376,1910.2,1910.0,3.2078]
[1742147808445,0.8376,1910.2,1910.1,3.537]
[1742147808944,0.83757,1910.3,1910.0,7.58247]
[1742147809144,0.83759,1910.2,1910.0,6.7448]
[1742147809339,0.83757,1910.3,1910.0,7.59032752]
[1742147809540,2.26063,1910.4,1910.1,0.83763]
[1742147809739,0.83754,1910.3,1910.0,7.59029752]
[1742147810440,2.26063,1910.4,1910.1,0.83763]
[1742147810640,0.83756,1910.3,1910.1,0.83763]
[1742147810844,0.83756,1910.3,1910.0,7.59029752]
[1742147811149,1.4231,1910.4,1910.0,7.59029752]
[1742147811348,1.4231,1910.4,1910.0,6.75265752]
[1742147811650,0.83763,1910.1,1910.0,0.00785752]
[1742147813253,7.2931,1910.4,1910.0,3.21565752]
[1742147813547,0.8376,1910.2,1910.0,5.51691752]
[1742147813748,0.8376,1910.2,1910.1,1.4636]
[1742147815254,0.83763,1910.1,1910.0,3.21565752]
[1742147815449,0.83763,1910.1,1910.0,0.00785752]
[1742147815840,0.83762,1910.2,1910.0,0.00785752]
[1742147816048,0.83762,1910.2,1910.0,2.22062752]
[1742147816343,7.2931,1910.4,1910.0,5.42840752]
[1742147816547,0.83758,1910.3,1910.1,1.3751]
[1742147816744,0.83759,1910.2,1910.1,1.3751]
[1742147818151,0.83763,1910.1,1910.0,0.00785752]
[1742147818650,3.2078,1910.1,1909.6,3.2078]
[1742147818849,6.5824,1910.0,1909.7,3.536]
[1742147819146,8.67668,1910.0,1909.3,4.04577]
[1742147819353,0.83788,1909.6,1909.4,3.536]
[1742147819554,3.2078,1909.8,1909.4,4.9456]
[1742147819753,0.00785752,1909.7,1909.4,4.9456]
[1742147819965,0.83789,1909.5,1909.4,4.9456]
[1742147820251,1.54668,1909.6,1909.4,5.78354]
[1742147820552,0.83789,1909.5,1909.4,4.9456]
[1742147820754,1.54668,1909.6,1909.4,5.78354]
[1742147820954,1.54668,1909.6,1909.5,1.3682]
[1742147821354,0.83789,1909.5,1909.4,3.536]
[1742147821859,0.83789,1909.5,1909.4,4.9042]
[1742147822153,1.4103,1909.6,1909.4,4.9042]
[1742147822660,0.84567752,1909.7,1909.5,2.20607]
[1742147822959,0.00785752,1909.7,1909.6,1.3682]
[1742147823259,0.84566752,1909.7,1909.6,1.3682]
[1742147824356,2.22516752,1909.7,1909.6,1.3682]
[1742147826854,2.22516752,1909.7,1909.6,2.20605]
[1742147827060,0.00785752,1909.7,1909.6,2.20605]
[1742147827256,0.00785752,1909.7,1909.6,6.11075]
[1742147827760,7.3297,1909.9,1909.8,0.83776]
[1742147827960,0.6736,1910.1,1910.0,0.83767]
[1742147828363,2.29729,1910.2,1910.1,0.83763]
[1742147828663,2.29729,1910.2,1910.0,2.95234]
[1742147828664,1.4597,1910.2,1910.0,2.95234]
[1742147828868,1.4597,1910.1,1910.0,1.56384]
[1742147829255,2.29733,1910.1,1910.0,0.7262]
[1742147829463,0.83767,1910.0,1909.9,0.83769]
[1742147829668,2.29737,1910.0,1909.9,0.83769]
[1742147830464,2.29737,1910.0,1909.8,4.37373]
[1742147830659,2.16242,1909.9,1909.8,4.37373]
[1742147830859,1.3247,1909.9,1909.8,4.37373]
[1742147831362,2.16242,1909.9,1909.8,3.536]
[1742147832665,2.16242,1909.9,1909.8,4.37376]
[1742147834467,2.16242,1909.9,1909.8,3.536]
[1742147836669,0.8377,1910.0,1909.8,3.536]
[1742147836972,0.83772,1909.9,1909.8,4.37373]
[1742147837372,0.83772,1909.9,1909.8,3.536]
[1742147838169,2.1931,1910.0,1909.8,3.536]
[1742147838474,2.1931,1910.0,1909.9,0.83772]
[1742147838669,0.8377,1910.0,1909.9,0.83772]
[1742147838871,0.8377,1910.0,1909.8,3.536]
[1742147839175,0.8377,1910.0,1909.9,0.83772]
[1742147839475,0.6926,1910.1,1909.9,0.8377]
[1742147839664,1.53027,1910.1,1909.9,0.8377]
[1742147840070,0.83767,1910.0,1909.9,0.8377]
[1742147840266,0.83767,1910.0,1909.8,3.536]
[1742147840469,0.83767,1910.0,1909.9,0.83772]
[1742147842070,1.53024,1910.1,1910.0,0.83767]
[1742147842270,1.56821,1910.2,1910.1,0.83763]
[1742147842568,5.87785752,1910.3,1909.9,3.2078]
[1742147842767,0.8376,1910.2,1910.1,0.8376]
[1742147842967,0.8376,1910.2,1910.1,7.5804]
[1742147843279,0.8376,1910.2,1910.1,8.9108]
[1742147843464,0.70205752,1910.3,1910.1,8.9108]
[1742147843667,0.83759,1910.2,1910.1,4.37262]
[1742147843868,0.70205752,1910.3,1910.1,4.37262]
[1742147844068,0.83759,1910.2,1910.1,5.70302]
[1742147844875,0.70205752,1910.3,1910.1,4.8654]
[1742147845078,0.83759,1910.2,1910.1,4.3726]
[1742147845870,0.83759,1910.2,1910.1,3.535]
[1742147847277,0.83767,1910.0,1909.9,6.7418]
[1742147847481,0.83767,1910.0,1909.9,3.534]
[1742147847778,0.83772,1909.9,1909.8,0.83775]
[1742147847973,0.83772,1909.9,1909.8,4.37175]
[1742147848283,0.83772,1909.9,1909.8,3.534]
[1742147848478,0.83776,1909.8,1909.7,4.74919]
[1742147848676,0.83776,1909.8,1909.7,8.28319]
[1742147848879,0.83775,1909.9,1909.8,0.83776]
[1742147849172,0.83776,1909.8,1909.7,7.4454]
[1742147849567,0.83776,1909.8,1909.7,8.28317]
[1742147849772,0.83776,1909.8,1909.7,4.74917]
[1742147849969,0.83776,1909.8,1909.7,8.28317]
[1742147850679,0.83775,1909.9,1909.8,0.83776]
[1742147850981,5.87,1910.2,1909.7,7.4454]
[1742147851182,0.83772,1910.0,1909.8,0.83776]
[1742147851481,0.83772,1910.0,1909.9,0.83772]
[1742147853483,1.4639,1910.1,1909.7,7.4454]
[1742147853678,0.83776,1909.8,1909.7,8.28318]
[1742147853873,0.00785752,1910.3,1910.2,0.83759]
[1742147854078,1.4639,1910.7,1910.6,0.83741]
[1742147854278,1.3357,1911.0,1910.9,0.83728]
[1742147854481,2.7477,1911.0,1910.8,3.2078]
[1742147854778,0.8373,1910.9,1910.7,0.83734]
[1742147854980,2.2493,1910.9,1910.8,0.83732]
[1742147855285,0.83732,1910.8,1910.7,0.83734]
[1742147855483,2.24932,1910.8,1910.7,0.83734]
[1742147855988,1.412,1910.8,1910.7,0.83734]
[1742147856685,1.412,1910.8,1910.7,4.04514]
[1742147856885,2.24932,1910.8,1910.7,4.04514]
[1742147857087,1.412,1910.8,1910.7,4.04514]
[1742147857285,1.412,1910.8,1910.7,0.83734]
[1742147858982,1.412,1910.8,1910.7,4.04514]
[1742147859283,1.412,1910.8,1910.7,0.83734]
[1742147860383,0.83737,1910.7,1910.6,4.37923752]
[1742147860584,1.50167,1910.7,1910.6,4.37923752]
[1742147860784,0.6643,1910.7,1910.6,4.37923752]
[1742147860986,1.50167,1910.7,1910.6,4.37923752]
[1742147861191,2.0556,1910.7,1910.6,4.37923752]
[1742147861379,2.89297,1910.7,1910.6,4.37923752]
[1742147861584,2.0556,1910.7,1910.6,4.37923752]
[1742147862493,1.3913,1910.7,1910.6,4.37923752]
[1742147863391,1.3913,1910.7,1910.6,5.70053752]
[1742147863587,0.83733,1910.8,1910.7,0.83737]
[1742147863795,1.4098,1910.9,1910.8,0.83729]
[1742147863994,2.0927,1910.9,1910.8,0.83729]
[1742147864595,1.4098,1910.9,1910.8,0.83729]
[1742147865193,1.4098,1910.9,1910.8,2.15859]
[1742147865694,1.4098,1910.9,1910.7,3.2078]
[1742147865895,0.6829,1910.8,1910.7,6.7398]
[1742147866699,1.52022,1910.8,1910.7,6.7398]
[1742147866891,0.83737,1910.7,1910.6,0.00785752]
[1742147867092,1.4056,1910.7,1910.6,0.84526752]
[1742147867289,1.4056,1910.7,1910.6,2.27156752]
[1742147867689,2.24297,1910.7,1910.6,0.84526752]
[1742147868000,2.24297,1910.7,1910.6,0.00785752]
[1742147868496,1.4056,1910.7,1910.6,0.84526752]
[1742147868697,1.4056,1910.7,1910.6,2.27156752]
[1742147869295,5.87,1910.8,1910.7,0.83737]
[1742147869492,7.3028,1910.8,1910.7,2.17997]
[1742147870096,1.4328,1910.8,1910.7,2.17997]
[1742147871602,2.81045752,1911.0,1910.7,1.3426]
[1742147871803,2.81045752,1911.0,1910.9,0.83728]
[1742147871990,2.21489752,1911.0,1910.8,5.71089]
[1742147872196,2.21489752,1911.0,1910.8,4.8736]
[1742147872694,2.21489752,1911.0,1910.9,0.83728]
[1742147872895,0.83728,1910.9,1910.8,5.71091]
[1742147873095,2.21491752,1911.0,1910.8,5.71091]
[1742147873700,0.83728,1910.9,1910.8,5.71091]
[1742147873997,1.37765752,1911.0,1910.8,5.71091]
[1742147874198,2.21492752,1911.0,1910.8,5.71091]
[1742147874396,0.83728,1910.9,1910.8,5.71091]
[1742147874595,2.21492752,1911.0,1910.8,5.71091]
[1742147874795,1.37765752,1911.0,1910.9,0.83728]
[1742147874995,1.37765752,1911.0,1910.9,2.20088]
[1742147875804,2.21489752,1911.0,1910.9,2.20088]
[1742147876002,1.37765752,1911.0,1910.9,2.20088]
[1742147877098,0.83728,1910.9,1910.8,4.36829]
[1742147877305,0.83728,1910.9,1910.8,3.531]
[1742147877503,0.83728,1910.9,1910.8,4.36832]
[1742147878701,0.83728,1910.9,1910.8,3.531]
[1742147878900,1.37765752,1911.0,1910.8,4.36732]
[1742147879504,0.83731,1910.9,1910.8,3.53]
[1742147879808,2.21491752,1911.0,1910.8,4.36728]
[1742147880103,2.21492752,1911.0,1910.8,4.36728]
[1742147880309,0.83728,1910.9,1910.8,4.36728]
[1742147880700,1.37765752,1911.0,1910.6,3.93525752]
[1742147881006,0.83737,1910.7,1910.6,4.67905752]
[1742147881301,0.83737,1910.7,1910.6,9.04646752]
[1742147881504,0.83737,1910.7,1910.6,7.58306752]
[1742147881908,0.83737,1910.7,1910.6,6.74565752]
[1742147882312,0.83737,1910.7,1910.6,3.21565752]
[1742147882507,0.83737,1910.7,1910.6,6.74565752]
[1742147883296,0.83737,1910.7,1910.6,7.58306752]
[1742147883501,0.83737,1910.7,1910.6,4.37526752]
[1742147883908,0.83737,1910.7,1910.6,3.53785752]
[1742147884509,0.83737,1910.7,1910.6,0.00785752]
[1742147884909,2.93217,1910.7,1910.6,0.00785752]
[1742147886412,2.93217,1910.7,1910.6,1.36705752]
[1742147887306,2.93217,1910.7,1910.6,0.00785752]
[1742147890609,10.05825,1910.7,1910.1,32.2398]
[1742147890911,0.83767,1910.0,1909.8,1.56034]
[1742147891207,0.83767,1910.0,1909.9,3.53]
[1742147893213,0.83772,1909.9,1909.8,0.00785752]
[1742147897415,0.83772,1909.9,1909.8,1.46045752]
[1742147898113,0.83772,1909.9,1909.8,0.00785752]
[1742147898904,0.83789,1909.5,1909.4,3.2078]
[1742147899315,0.83794,1909.4,1909.3,1.4526]
[1742147899519,0.83798,1909.3,1909.2,3.53]
[1742147900016,0.83791,1909.5,1909.2,4.36802]
[1742147900219,0.83791,1909.5,1909.2,6.47232]
[1742147900516,0.83791,1909.5,1909.3,1.4168]
[1742147901004,0.6874,1909.7,1909.4,0.83789]
[1742147901210,0.83785,1909.6,1909.5,1.4168]
[1742147901915,1.52525,1909.7,1909.5,2.25469]
[1742147902117,0.6874,1909.7,1909.5,2.25469]
[1742147902317,0.6874,1909.7,1909.6,2.25465]
[1742147902512,0.83778,1909.8,1909.6,2.92435]
[1742147902718,0.83778,1909.8,1909.7,1.3189]
[1742147903212,2.17548,1909.8,1909.7,1.3189]
[1742147903523,1.3377,1909.8,1909.7,2.15671]
[1742147904018,5.87,1910.0,1909.8,0.83773]
[1742147904219,1.35505752,1910.1,1909.8,3.53]
[1742147904524,3.53039752,1910.1,1909.9,0.83769]
[1742147904821,1.34555752,1910.1,1910.0,4.04547]
[1742147905018,1.34555752,1910.1,1910.0,0.83767]
[1742147905721,2.18319752,1910.1,1909.9,0.83769]
[1742147906026,1.34555752,1910.1,1910.0,0.83767]
[1742147906212,0.00785752,1910.1,1910.0,0.83767]
[1742147906409,0.84548752,1910.1,1910.0,0.83767]
[1742147906615,0.00785752,1910.1,1910.0,0.83767]
[1742147906921,0.00785752,1910.1,1909.9,0.83769]
[1742147907116,0.84552752,1910.1,1909.9,0.83769]
[1742147907313,0.84552752,1910.1,1909.8,6.7378]
[1742147907314,0.00785752,1910.1,1909.8,6.7378]
[1742147907514,0.00785752,1910.1,1910.0,0.83767]
[1742147907913,0.00785752,1910.1,1910.0,1.55387]
[1742147908820,0.00785752,1910.1,1910.0,0.7162]
[1742147909023,0.83769,1910.0,1909.8,4.04553]
[1742147909216,1.3957,1910.0,1909.9,4.36772]
[1742147909417,2.23337,1910.0,1909.9,3.53]
[1742147910220,0.83772,1909.9,1909.8,3.2078]
[1742147910420,0.83772,1909.9,1909.8,4.04556]
[1742147911317,0.83772,1909.9,1909.8,3.2078]
[1742147912218,2.23341,1910.0,1909.8,4.04556]
[1742147912620,2.23341,1910.0,1909.8,0.83776]
[1742147912821,0.83772,1909.9,1909.8,0.83776]
[1742147913122,2.23339,1910.0,1909.9,0.83772]
[1742147913623,2.23339,1910.0,1909.7,4.2208]
[1742147913624,2.23339,1910.0,1909.8,0.83772]
[1742147913923,2.23339,1910.0,1909.9,0.83772]
[1742147914109,2.23339,1910.0,1909.8,0.83773]
[1742147915222,0.83772,1909.9,1909.8,0.83773]
[1742147915419,1.3957,1910.0,1909.7,4.2208]
[1742147915611,0.83776,1909.8,1909.7,5.05858]
[1742147916016,1.3957,1910.0,1909.7,5.05858]
[1742147916520,0.83776,1909.8,1909.7,3.53]
[1742147916724,0.83785,1909.6,1909.5,4.36788]
[1742147917818,0.83784,1909.7,1909.5,4.36788]
[1742147918018,1.56805,1909.6,1909.5,4.36788]
[1742147918520,1.56805,1909.6,1909.5,3.53]
[1742147919625,0.83802,1909.3,1909.2,3.529]
[1742147919818,0.6858,1909.5,1909.2,4.36703]
[1742147920015,0.83798,1909.3,1909.2,3.529]
[1742147923429,0.83798,1909.3,1909.2,4.9624]
[1742147924024,0.83798,1909.3,1909.2,8.1702]
[1742147924724,0.83798,1909.3,1909.2,4.9624]
[1742147924924,0.83798,1909.3,1909.1,0.00785752]
[1742147924925,0.83803,1909.2,1909.1,0.00785752]
[1742147925120,2.22583,1909.2,1909.1,0.00785752]
[1742147925320,2.22583,1909.2,1909.1,1.37805752]
[1742147929424,2.22583,1909.2,1909.1,0.00785752]
[1742147932327,1.3878,1909.2,1909.1,4.05372752]
[1742147932937,2.22583,1909.2,1909.1,3.21565752]
[1742147933130,1.3878,1909.2,1909.1,4.05372752]
[1742147933434,1.3878,1909.2,1909.1,5.44152752]
[1742147934040,1.3878,1909.2,1909.1,8.97152752]
[1742147935130,2.22583,1909.2,1909.1,8.13345752]
[1742147935328,1.3878,1909.2,1909.1,8.97152752]
[1742147935530,2.22583,1909.2,1909.1,8.13345752]
[1742147935731,2.22583,1909.2,1909.1,8.97152752]
[1742147936631,1.3878,1909.2,1909.1,8.97152752]
[1742147937030,2.22583,1909.2,1909.1,8.97152752]
[1742147937935,2.22583,1909.2,1909.1,8.13345752]
[1742147938841,2.22583,1909.2,1909.1,4.92565752]
[1742147939133,2.22583,1909.2,1909.1,5.76372752]
[1742147939640,1.3878,1909.2,1909.1,5.76372752]
[1742147939834,1.3878,1909.2,1909.1,8.97152752]
[1742147940432,2.22583,1909.2,1909.1,8.97152752]
[1742147940738,2.22583,1909.2,1909.1,8.13345752]
[1742147941041,1.3878,1909.2,1909.1,8.97152752]
[1742147941837,0.83795,1909.4,1909.2,0.83799]
[1742147942140,2.21885,1909.4,1909.3,2.18908]
[1742147942347,1.3809,1909.4,1909.3,2.18908]
[1742147942539,5.87,1909.5,1909.4,0.83794]
[1742147942741,1.394,1909.7,1909.4,5.5268]
[1742147942935,1.394,1909.7,1909.6,0.83785]
[1742147943335,1.394,1909.7,1909.6,2.16465]
[1742147943542,8.09395,1909.9,1909.7,0.8378]
[1742147943743,2.22395,1909.9,1909.8,1.3268]
[1742147944041,0.83772,1909.9,1909.8,1.3268]
[1742147944543,11.3017,1910.0,1909.8,2.16456]
[1742147944735,10.464,1910.0,1909.8,1.3268]
[1742147944936,11.30167,1910.0,1909.9,1.3268]
[1742147946044,12.65107,1910.0,1909.9,1.3268]
[1742147946539,1.3494,1910.0,1909.9,2.16452]